Cogmind - Beta 17 @@@ ROGUE MODE // 2026.07.19 @ 03:09:42 Player: Clog Result: Destroyed by E6-5SU(R) with Subdweller Laser Performance ------------- Evolutions (0) 0 Regions Visited (2) 400 Robots Destroyed (28) 140 Value Destroyed (572) 572 Prototype IDs (0) 0 Alien Tech Used (0) 0 Bonus (-9) -9 TOTAL SCORE: 1103 Bonus ------- Friendly Fire -9 Cogmind --------- Core Integrity 0/250 Matter 234/300 Energy 248/250 System Corruption 1% Temperature Cool (6) Movement Treading (160) Location -10/Subcaves Parts ------- > --- POWER (1) -------- Ion Engine > --- PROPULSION (2) --- Light Treads Spiked Treads > --- UTILITY (2) ------ Medium Storage Unit Subdweller Optics > --- WEAPON (2) ------- Light Assault Rifle (fused) Light Assault Rifle > --- INVENTORY (10) --- Ion Engine Light Treads Improved Flight Unit Improved Flight Unit Improved Flight Unit Improved Flight Unit Heat Sink Hacking Suite Light Assault Rifle Grenade Launcher Peak State ------------ > --- POWER ------------ Ion Engine > --- PROPULSION ------- Light Treads Light Treads > --- UTILITY ---------- Medium Storage Unit Improved Terrain Scanner > --- WEAPON ----------- Light Assault Rifle Light Assault Rifle > --- INVENTORY -------- Ion Engine Light Treads Improved Flight Unit Improved Flight Unit Improved Flight Unit Improved Flight Unit Heat Sink Hacking Suite Light Assault Rifle Grenade Launcher [Rating: 11] Favorites ----------- Power Ion Engine Engine Ion Engine Propulsion Light Treads Treads Light Treads Hover Unit Backup Propulsion I Utility Medium Storage Unit Device Improved Terrain Scanner Storage Medium Storage Unit Weapon Light Assault Rifle Ballistic Gun Light Assault Rifle Build | -11 -10 -10 ------- Run | Yrd Mat Sub Slots Evolved . | . . . Power . | . . . Propulsion . | . . . Utility . | . . . Weapon . | . . . Parts Attached 20 | 8 10 2 Power 3 | 1 2 . Engine 3 | 1 2 . Core . | . . . Reactor . | . . . Propulsion 5 | 2 2 1 Treads 5 | 2 2 1 Leg . | . . . Wheel . | . . . Hover . | . . . Flight . | . . . Utility 6 | 2 3 1 Device 3 | 1 1 1 Storage 3 | 1 2 . Processor . | . . . Hackware . | . . . Protection . | . . . Artifact . | . . . Weapon 6 | 3 3 . Energy Gun . | . . . Energy Cannon . | . . . Ballistic Gun 6 | 3 3 . Ballistic Cannon . | . . . Launcher . | . . . Special Weapon . | . . . Impact Weapon . | . . . Slashing Weapon . | . . . Piercing Weapon . | . . . Special Melee Weapon . | . . . Unidentified Prototypes . | . . . Parts Lost 5 | . 5 . Power 1 | . 1 . Propulsion 1 | . 1 . Utility 2 | . 2 . Weapon 1 | . 1 . Highest Loss Streak 2 | . 2 . To Critical Strikes . | . . . Average Backups 6 | 2 6 10 Power . | . . 1 Propulsion 3 | . 2 5 Utility 1 | . . 2 Weapon 1 | . 1 2 Tool/Special . | . . . Unused Backups 8 | . . 8 Power 1 | . . 1 Propulsion 4 | . . 4 Utility 2 | . . 2 Weapon 1 | . . 1 Tool/Special . | . . . Average Slot Usage (%) 95 | . 95 94 Engine 13 | . 13 14 Treads 25 | . 25 28 Device 12 | . 13 9 Storage 13 | . 13 14 Ballistic Gun 27 | . 27 28 Peak Build Rating 11 | 7 11 11 Average Rating 8 | 4 8 10 On Entrance 5 | . 7 8 Avg Prop Armor Cover (%) 12 | . 12 . Naked Turns . | . . . Heaviest Build 19 | 15 19 19 Greatest Support 40 | 40 40 40 Greatest Overweight (x) 2 | 1 2 . Average Overweight (x) . | . . . Largest Inventory Capacity 25 | 8 25 10 Average Capacity 9 | 6 8 10 Most Carried 10 | 5 10 10 Average Carried 7 | 2 6 10 Final Capacity 10 | 8 10 10 Final Carried 10 | 3 10 10 Class Distribution -------------------- 55% | Scavenger-Mutant 44% | Mutant Dominant Class ---------------- Mutant | -10/Materials Scavenger-Mutant | -10/Subcaves Resources | -11 -10 -10 ----------- Run | Yrd Mat Sub Matter Collected 790 | 201 589 . Remotely . | . . . Salvage Created 795 | 44 582 169 Parts 75 | 7 58 10 Haulers Intercepted 2 | . 2 . Recyclers Shooed . | . . . Parts Field Recycled . | . . . Retrieved Matter . | . . . Parts Self-Destructed . | . . . Prevented . | . . . Parts Restored . | . . . Kills | -11 -10 -10 ------- Run | Yrd Mat Sub Combat Hostiles Destroyed 19 | . 16 3 Guns 19 | . 16 3 Classes Destroyed 8 | 1 6 1 Builder 1 | . 1 . Tunneler 2 | 2 . . Hauler 2 | . 2 . Operator 2 | . 2 . Watcher 2 | . 2 . Swarmer 8 | . 8 . Grunt 8 | . 8 . Subdweller 3 | . . 3 Best Kill Streak 4 | 1 4 2 Combat Bots Only 3 | . 3 2 Max Kills in Single Turn 1 | 1 1 1 Gunslinging . | . . . Exploded . | . . . Melee . | . . . Uniques/NPCs Destroyed . | . . . Combat | -11 -10 -10 -------- Run | Yrd Mat Sub Hostile Shots Fired 147 | . 122 25 Missed 39 | . 28 11 Hits 108 | . 94 14 Projectile 108 | . 94 14 Damage Taken 1204 | . 915 289 Core 251 | . 144 107 Absorbed by Shields . | . . . Regen/Repaired (Parts) 118 | . 118 . Core Remaining (%) 100 | 100 . . Volleys Fired 126 | 4 99 23 Largest 2 | 2 2 2 Hottest 40 | 40 40 40 Shots Fired 250 | 8 196 46 Gun 250 | 8 196 46 Cannon . | . . . Launcher . | . . . Special . | . . . Kinetic 250 | 8 196 46 Thermal . | . . . Explosive . | . . . Electromagnetic . | . . . Robot Hit Streak 15 | 2 15 12 Robot Miss Streak 8 | 3 8 2 Penetration Max . | . . . Secondary Targets 3 | . 2 1 Max Gunslinging Chain 1 | . 1 1 Shots Hit Robots 146 | 3 105 38 Core Hits 55 | 2 40 13 Critical Kills . | . . . Critical Parts Destroyed 2 | . 2 . Critical Strikes 2 | . 2 . Destroy 2 | . 2 . Melee Attacks . | . . . Impact . | . . . Slashing . | . . . Piercing . | . . . Sneak Attacks . | . . . Combat Hostiles . | . . . Follow-up Attacks . | . . . Damage Inflicted 1522 | 36 1180 306 Guns 1514 | 36 1172 306 Cannons . | . . . Explosions . | . . . Melee . | . . . Ramming 8 | . 8 . Kinetic 1514 | 36 1172 306 Thermal . | . . . Explosive . | . . . Electromagnetic . | . . . Impact . | . . . Slashing . | . . . Piercing . | . . . Highest Corruption 1 | . 1 1 Average Corruption 1 | . 1 1 Corruption Purged . | . . . Corruption Blocked . | . . . Effects 9 | . 6 3 Message Errors 3 | . 2 1 Heat Flow Errors 1 | . 1 . Parts Fused 1 | . 1 . Data Loss (minor) 1 | . 1 . Misfires 1 | . . 1 Alerts 1 | . 1 . Weapon Failures 1 | . . 1 Overload Shots . | . . . Overflow Damage . | . . . Projectiles . | . . . Explosions . | . . . Melee . | . . . Knockbacks . | . . . Impact . | . . . Kinetic . | . . . Secondary . | . . . Self-Inflicted Damage . | . . . Shots . | . . . Rammed 3 | . 3 . Targets Rammed 4 | . 4 . Kicked . | . . . Crushed 1 | . 1 . Highest Temperature 240 | . 240 . Average Temperature 55 | . 55 . Received Heat Transfer 420 | . 336 84 Siege Activations . | . . . Martial Activations . | . . . Shielding Activations . | . . . Robots Disrupted . | . . . Combat Hostiles . | . . . Robots Corrupted . | . . . Combat Hostiles . | . . . Parts Fried . | . . . Impact Corruptions . | . . . Robots Melted . | . . . Combat Hostiles . | . . . Parts Melted . | . . . Heat Transferred . | . . . Parts Sabotaged . | . . . Parts Stolen . | . . . Parts Stripped . | . . . Power Chain Reactions . | . . . Alert | -11 -10 -10 ------- Run | Yrd Mat Sub Maximum Alert Level . | . . . Low Security (%) 100 | 100 100 . Level 1 . | . . . Level 2 . | . . . Level 3 . | . . . Level 4 . | . . . Level 5 . | . . . High Security . | . . . Max Security . | . . . Peak Influence 134 | 5 134 . Initial . | . . . Average 45 | 1 47 . Influence Increases 535 | 10 525 . Destroy 0b10 Robot/C 320 | . 320 . Destroy 0b10 Robot/NC 45 | 10 35 . Destroy Leader 88 | . 88 . Successful Hack 19 | . 19 . Destroy Structure 3 | . 3 . Lose Combat Pursuer 60 | . 60 . Influence Decreases 535 | 10 466 59 Entered New Map 29 | . . 29 Time Decay 462 | 10 422 30 Lost Part 44 | . 44 . Squads Dispatched 5 | . 5 . Investigation 2 | . 2 . Extermination . | . . . Reinforcement 3 | . 3 . Assault . | . . . Garrison . | . . . Intercept . | . . . Searches Triggered . | . . . Construction Impeded . | . . . Haulers Reinforced . | . . . Active Scanning Responses . | . . . Cargo Convoy Interrupts . | . . . Stealth | -11 -10 -10 --------- Run | Yrd Mat Sub Distress Signals . | . . . Communications Jammed . | . . . Distress Signals . | . . . Times Spotted 42 | . 38 4 Peak Tracking Total 6 | . 6 2 Tactical Retreats 4 | . 4 . Traps | -11 -10 -10 ------- Run | Yrd Mat Sub Traps Triggered 3 | . 3 . Indirectly . | . . . Trap Hack Attempts . | . . . Triggered . | . . . Disarmed . | . . . Reprogrammed . | . . . Reused . | . . . Traps Extracted . | . . . Installed . | . . . Triggered . | . . . Machines | -11 -10 -10 ---------- Run | Yrd Mat Sub Machines Disabled . | . . . Max in Single Turn . | . . . Machines Repaired . | . . . Machines Dismantled . | . . . Machines Sabotaged . | . . . Overloaded Fab Kills . | . . . Hacking | -11 -10 -10 --------- Run | Yrd Mat Sub Machines Accessed 4 | . 4 . Terminals 3 | . 3 . Fabricators . | . . . Repair Stations 1 | . 1 . Recycling Units . | . . . Scanalyzers . | . . . Garrison Access . | . . . Total Hacks 13 | . 13 . Successful 6 | . 6 . Failed 7 | . 7 . Catastrophic 3 | . 3 . Database Lockouts . | . . . Manual 8 | . 8 . Terminals 8 | . 8 . Fabricators . | . . . Repair Stations 5 | . 5 . Recycling Units . | . . . Scanalyzers . | . . . Garrison Access . | . . . Terminal Hacks 3 | . 3 . Branch Access Points 1 | . 1 . Recall Investigation 1 | . 1 . Hauler Manifests 1 | . 1 . Fabricator Hacks . | . . . Repair Station Hacks 3 | . 3 . Scan Component 1 | . 1 . Repair 1 | . 1 . Refit 1 | . 1 . Recycling Unit Hacks . | . . . Scanalyzer . | . . . Garrison Access Hacks . | . . . Unauthorized Hacks . | . . . Terminals . | . . . Fabricators . | . . . Repair Stations . | . . . Recycling Units . | . . . Scanalyzers . | . . . Garrison Access . | . . . Data Cores Recovered . | . . . Used . | . . . Hacking Detections 4 | . 4 . Full Trace Events 1 | . 1 . Feedback Events . | . . . Feedback Blocked . | . . . Robot Schematics Acquired . | . . . Robots Built . | . . . Authchips . | . . . Time . | . . . Total Robot Build Rating . | . . . Part Schematics Acquired . | . . . Parts Built . | . . . Authchips . | . . . Time . | . . . Total Part Build Rating . | . . . Part Studies Acquired . | . . . Parts Repaired 1 | . 1 . Time 26 | . 26 . Parts Recycled . | . . . Recycled Matter . | . . . Retrieved Matter . | . . . Retrieved Components . | . . . Parts Scanalyzed . | . . . Part Schematics Acquired . | . . . Parts Damaged . | . . . Bothacking | -11 -10 -10 ------------ Run | Yrd Mat Sub Used RIF Installer . | . . . Robots Hacked . | . . . Non-combat . | . . . Combat . | . . . Robot Hacks Applied . | . . . Relay Couplers Released . | . . . Fabnet Peak Effective % . | . . . Robots Rewired . | . . . Allies Hacked . | . . . Hacks Repelled . | . . . Allies | -11 -10 -10 -------- Run | Yrd Mat Sub Total Allies . | . . . Largest Group . | . . . Highest-Rated Group . | . . . Highest-Rated Ally . | . . . Total Orders . | . . . Ally Attacks . | . . . Total Damage . | . . . Kills . | . . . Allies Corrupted . | . . . Allies Melted . | . . . Intel | -11 -10 -10 ------- Run | Yrd Mat Sub Active Infowar (turns) 1637 | 11 1328 298 Optics 298 | . . 298 Terrain 1030 | . 1030 . Seismic 309 | 11 298 . Robot Analysis Total . | . . . Derelict Logs Recovered 1 | . . 1 Drone Launches . | . . . Drone Recoveries . | . . . Exploration | -11 -10 -10 ------------- Run | Yrd Mat Sub Turns Passed 1961 | 85 1430 446 Spaces Moved 955 | 45 670 240 Core 22 | 22 . . Treads 926 | 23 663 240 Legs . | . . . Wheels . | . . . Hover 7 | . 7 . Flight . | . . . Fastest Speed 50 | 50 160 160 Average Speed 158 | 111 161 160 Slowest Speed 260 | 160 260 160 Overloaded Moves . | . . . Propulsion Burnouts . | . . . Robots Hopped . | . . . Potential Cave-ins . | . . . Cave-ins Triggered . | . . . Exploration Rate (%) 30 | 3 65 24 Regions Visited 2 Branch Regions 1 Pre-discovered Areas . | . . . Known Exits Taken . | . . . Unknown Exits Taken 2 | 1 1 . Scrap Searched . | . . . Spaces Dug . | . . . Terrain Destroyed . | . . . Melee . | . . . Projectile . | . . . AOE . | . . . Terrain Rammed . | . . . Walls Destroyed . | . . . Machines Disabled . | . . . Actions | -11 -10 -10 --------- Run | Yrd Mat Sub Total 1180 | 70 843 267 Wait 42 | 6 35 1 Move 953 | 44 669 240 Hop . | . . . Pick Up 23 | 8 15 . Fast Attach 5 | 2 2 1 Attach 11 | 5 6 . Detach 3 | . 3 . Swap 5 | 1 3 1 Drop 8 | . 7 1 Fire 126 | 4 99 23 Melee . | . . . Ram . | . . . Kick . | . . . Crush 4 | . 4 . Escape Stasis . | . . . Rewire . | . . . Trap . | . . . Miscellaneous . | . . . Route ------- -11/Scrapyard -10/Materials (discovered 4 exits: [*Mat x2] / Min / [*Sub]) -10/Subcaves (discovered 1 exit: [*Mat]) History --------- Turn | Location | Event 10 | -11/Scrapyard | Discovered new exit (range 15) 86 | -11/Scrapyard | Entered Materials 301 | -10/Materials | Build established: Mutant 462 | -10/Materials | Discovered new exit (range 7) 641 | -10/Materials | Repaired Lgt. Treads 857 | -10/Materials | Discovered new exit (range 6) 1165 | -10/Materials | Build established: Scavenger-Mutant 1415 | -10/Materials | Identified exit to Mines 1435 | -10/Materials | Core integrity fell below 50% 1492 | -10/Materials | Discovered new exit (range 9) 1516 | -10/Materials | Entered Subcaves 1517 | -10/Subcaves | Approached by a straggling Scientist 1555 | -10/Subcaves | Learned Materials terminal intel 1893 | -10/Subcaves | Discovered new exit (range 17) 1945 | -10/Subcaves | Core integrity fell below 20% 1962 | -10/Subcaves | Destroyed by E6-5SU(R) with Subdweller Laser Last Messages --------------- here" 01674_ Subatomizers dissect the Disposable Heat Sink. 6R-PKS(c): "I think it's somewhere southwest of here" 01855_ System corrupted: FCS attempts to trigger Lgt. Assault Rifle. 01855_ System corrupted: Lgt. Assault Rifle misfires. 6R-PKS(c): "I think it's somewhere west of here" 01887_ Q523YO|CTAV NRH9HCZNXH5JJJTY 01893_ EXIT=FOUND 6R-PKS(c): "We're getting close, I can feel it." 01932_ S8-WN2(R) destroyed. 01932_ Switching to secondary target: 28-6MD(R). 01938_ 28-6MD(R) destroyed. 01949_ System corrupted: Lgt. Assault Rifle jammed. 01952_ E6-5SU(R) affixes Scrap Shield Fragment to Scrap Shield. Map ----- +----------------------------------------------------+ | ????????????????????????????????????## ??### | | ???????????????????????????????????## #???? | | ??????????????????????????????????? #?## | | ??????????????????????????????????? ## | | ???????????????????????????????????# | | ?????????????????????????????????????? | | ??????????????????????????????????????????# | | ??????????????????????????????????????????# | | ??????????????????????????????????????????# #### | | ????????????????????????????????????#????????????# | | ????????????????????????????????????# ???????????# | | ???????????????????????????????????## ??????????# | | ???????????????????????????????????# ?????????? | | ???????????????????????????????????# ???##???? | | ???????????????????????????????????# ### #### | | ???????????????????????????????????????# | | ?????????????????????????????????????????## | | ??????????????????????????????????????????## | | ???????????????????????????????????????????## | | ??????????????????????##????????????????????### | | ??????????????????????# ?????????????????????## | | ??????????????????????# ##???###????????????## | | ????????????????????### ##### ##########?#?# | | ????????????????????# # # ## # ## ## | | ????????????????????## < c ## | | ?????????????????????#[!!@ ######## ## ## | | ????????????????# %R|#####??????##### ### | | ????????????????# ##!%[????????????## ## | | ???????????????# ""?#"#&#????????????# | | ???????????????# "?""" * ????????????## | | ???????????????# ? "#"# ?????????????# # ### | | ???????????????##?####?###?????????????#####?##### | | ?????????????????????????????????????????????????? | | ?????????????????????????????????????????????????? | | ?????????????????????????????????????????????????? | | ?????????????????????????????????????????????????? | | ?????????????????????????????????????????????????? | | ?????????????????????????????????????????????????? | | ?????????????????????????????????????????????????? | | ?????????????????????????????????????????????????? | | ?????????????????????????????????????????????????? | | ?????????????????????????????????????????????????? | | ?????????????????????????????????????????????????? | | ?????????????????????????????????????????????????? | | ?????????????????????????????????????????????????? | | ?????????????????????????????????????????????????? | | ?????????????????????????????????????????????????? | | | | | | | +----------------------------------------------------+ Best States ------------- Heat Dissipation 25 Energy Generation 10 Energy Capacity 250 Matter Stores 300 Matter Capacity 300 Sight Range 21 Terrain Scan Range 16 Terrain Scan Density 10 Evasion (%) 50 Recoil Reduction 2 Item Schematics ----------------- None Robot Schematics ------------------ None Fabricated ------------ Nothing Repaired ---------- Lgt. Treads | 15% | -10/Materials Studied --------- None Alien Tech Used ----------------- None Achievements -------------- None Challenges ------------ None Game ------ Seed MiningCompositePenetrator Manual? 0 Play Time 00:17:35 Cumulative 18.9 hours Start 2026.07.19 @ 02:54:54 End 2026.07.19 @ 03:09:42 Sessions 1 Manual Loads 0 Difficulty Rogue Special Mode None Game No. 21 Rogue 18 Adventurer 3 Explorer 0 Win Type - Total 1 Types 1/0/0/0/0/0/0/0/0/0 Lore% 19 Gallery% 17 Achievement% 20 Wizard Run 0 Options --------- Layout 1 ASCII 0 Keyboard 0 Movement Mouse Keybinds 0 Fullscreen 1 Font 32/SmallcapsGlow Map View 50x35 Zoom Use 0% Tactical HUD 1 Map Filters NONE Filters NONE Steam 1 RUN: e28d1e39-6970-433c-acf9-aafd99f5bae9